Cogmind - Beta 14 @@@ ROGUE MODE // 2024.08.07 @ 19:04:45 Player: Daffa0360 Result: Destroyed by S-10 Pest with Light Assault Rifle Performance ------------- Evolutions (0) 0 Regions Visited (3) 600 Robots Destroyed (24) 120 Value Destroyed (610) 610 Prototype IDs (0) 0 Alien Tech Used (0) 0 Bonus (0) 0 TOTAL SCORE: 1330 Bonus ------- None Cogmind --------- Core Integrity 0/250 Matter 296/300 Energy 170/170 System Corruption 0% Temperature Cool (8) Movement Rolling (110) Location -10/Subcaves Parts ------- > --- POWER (1) -------- Makeshift Power Source > --- PROPULSION (2) --- Subdweller Monowheel > --- UTILITY (2) ------ Small Storage Unit Hacking Suite > --- WEAPON (2) ------- Riot Gun Barrage Gun > --- INVENTORY (8) ---- Weight Redist. System Subdweller Optics Signal Interpreter Improved Terrain Scanner Makeshift Thermal Plating Grenade Launcher Datajack Mining Laser Peak State ------------ > --- POWER ------------ Improved Ion Engine > --- PROPULSION ------- Aluminum Leg Subdweller Monowheel > --- UTILITY ---------- Small Storage Unit Hacking Suite > --- WEAPON ----------- Heavy Riot Gun Barrage Gun > --- INVENTORY -------- Weight Redist. System Subdweller Optics Signal Interpreter Improved Terrain Scanner Grenade Launcher Datajack Mining Laser [Rating: 17] Favorites ----------- Power Ion Engine Engine Ion Engine Propulsion Aluminum Leg Leg Aluminum Leg Wheel Subdweller Monowheel Utility Small Storage Unit Storage Small Storage Unit Hackware Hacking Suite Weapon Heavy Assault Rifle Energy Gun Medium Laser Ballistic Gun Heavy Assault Rifle Launcher Grenade Launcher Special Weapon Mining Laser Build | -11 -10 -10 -10 ------- Run | Yrd Mat Min Sub Slots Evolved . | . . . . Power . | . . . . Propulsion . | . . . . Utility . | . . . . Weapon . | . . . . Parts Attached 21 | 6 3 2 10 Power 4 | 1 1 . 2 Engine 4 | 1 1 . 2 Core . | . . . . Reactor . | . . . . Propulsion 5 | 2 . 2 1 Treads . | . . . . Leg 4 | 2 . 2 . Wheel 1 | . . . 1 Hover . | . . . . Flight . | . . . . Utility 2 | 1 1 . . Device . | . . . . Storage 1 | 1 . . . Processor . | . . . . Hackware 1 | . 1 . . Protection . | . . . . Artifact . | . . . . Weapon 10 | 2 1 . 7 Energy Gun 3 | 1 . . 2 Energy Cannon . | . . . . Ballistic Gun 5 | 1 1 . 3 Ballistic Cannon . | . . . . Launcher 1 | . . . 1 Special Weapon 1 | . . . 1 Impact Weapon . | . . . . Slashing Weapon . | . . . . Piercing Weapon . | . . . . Special Melee Weapon . | . . . . Unidentified Prototypes . | . . . . Parts Lost 5 | . . . 5 Power 1 | . . . 1 Propulsion 2 | . . . 2 Utility . | . . . . Weapon 2 | . . . 2 Highest Loss Streak 2 | . . . 2 To Critical Strikes . | . . . . Average Slot Usage (%) 96 | . 86 100 96 Engine 13 | . 14 14 13 Leg 25 | . 28 28 22 Wheel 1 | . . . 3 Storage 14 | . 14 14 14 Hackware 12 | . 1 14 14 Energy Gun 13 | . 14 14 13 Ballistic Gun 13 | . 14 14 13 Peak Build Rating 17 | 6 11 11 17 Average Rating 11 | 4 8 11 14 On Entrance 7 | . 6 11 11 Naked Turns . | . . . . Heaviest Build 19 | 13 15 15 19 Greatest Support 20 | 20 20 20 20 Greatest Overweight (x) 1 | . . . 1 Average Overweight (x) . | . . . . Largest Inventory Capacity 8 | 8 8 8 8 Average Capacity 7 | 7 8 8 8 Most Carried 8 | 5 8 8 8 Average Carried 7 | 1 6 8 7 Final Capacity 8 | 8 8 8 8 Final Carried 8 | 2 8 8 8 Class Distribution -------------------- 96% | Mutant 3% | Scavenger-Mutant Dominant Class ---------------- Mutant | -10/Materials Mutant | -10/Mines Mutant | -10/Subcaves Resources | -11 -10 -10 -10 ----------- Run | Yrd Mat Min Sub Matter Collected 589 | 242 77 97 173 Remotely . | . . . . Salvage Created 736 | 15 112 270 339 Parts 48 | 4 9 18 17 Haulers Intercepted . | . . . . Recyclers Shooed . | . . . . Parts Field Recycled . | . . . . Retrieved Matter . | . . . . Parts Self-Destructed 3 | . . . 3 Prevented . | . . . . Kills | -11 -10 -10 -10 ------- Run | Yrd Mat Min Sub Combat Hostiles Destroyed 21 | . 4 10 7 Guns 21 | . 4 10 7 Classes Destroyed 6 | 1 3 . 2 Tunneler 1 | 1 . . . Operator 2 | . 2 . . Swarmer 9 | . 3 6 . Grunt 5 | . 1 4 . Sentry 1 | . . . 1 Subdweller 6 | . . . 6 Best Kill Streak 5 | 1 5 3 2 Combat Bots Only 4 | . 4 3 2 Max Kills in Single Turn 2 | 1 1 2 1 Gunslinging 1 | . . 1 . Exploded . | . . . . Melee . | . . . . Uniques/NPCs Destroyed . | . . . . Combat | -11 -10 -10 -10 -------- Run | Yrd Mat Min Sub Hostile Shots Fired 87 | . 7 42 38 Missed 29 | . 3 15 11 Damage Taken 874 | . 28 280 566 Core 254 | . 13 122 119 Absorbed by Shields . | . . . . Core Remaining (%) 100 | 100 . . . Volleys Fired 69 | 5 11 24 29 Largest 2 | 2 2 2 2 Hottest 100 | 70 73 73 100 Shots Fired 133 | 10 22 48 53 Gun 132 | 10 22 48 52 Cannon . | . . . . Launcher . | . . . . Special 1 | . . . 1 Kinetic 68 | 5 11 24 28 Thermal 44 | 5 11 24 4 Explosive . | . . . . Electromagnetic 21 | . . . 21 Robot Hit Streak 15 | 4 11 9 15 Robot Miss Streak 3 | 1 3 3 2 Penetration Max . | . . . . Secondary Targets 1 | . . 1 . Max Gunslinging Chain 1 | . . 1 . Shots Hit Robots 93 | 7 14 30 42 Core Hits 40 | 2 8 14 16 Critical Kills . | . . . . Critical Parts Destroyed . | . . . . Critical Strikes 4 | . . 3 1 Burn 4 | . . 3 1 Melee Attacks . | . . . . Impact . | . . . . Slashing . | . . . . Piercing . | . . . . Sneak Attacks . | . . . . Combat Hostiles . | . . . . Follow-up Attacks . | . . . . Damage Inflicted 1359 | 69 183 416 691 Guns 1359 | 69 183 416 691 Cannons . | . . . . Explosions . | . . . . Melee . | . . . . Ramming . | . . . . Kinetic 661 | 32 69 217 343 Thermal 389 | 37 114 199 39 Explosive . | . . . . Electromagnetic 309 | . . . 309 Impact . | . . . . Slashing . | . . . . Piercing . | . . . . Highest Corruption . | . . . . Average Corruption . | . . . . Corruption Purged . | . . . . Corruption Blocked . | . . . . Overload Shots . | . . . . Overflow Damage . | . . . . Projectiles . | . . . . Explosions . | . . . . Melee . | . . . . Knockbacks . | . . . . Impact . | . . . . Kinetic . | . . . . Secondary . | . . . . Self-Inflicted Damage . | . . . . Shots . | . . . . Rammed . | . . . . Targets Rammed . | . . . . Kicked . | . . . . Crushed . | . . . . Highest Temperature 141 | 60 60 141 16 Average Temperature 35 | 28 24 46 8 Received Heat Transfer 162 | . . 93 69 Siege Activations . | . . . . Robots Corrupted . | . . . . Combat Hostiles . | . . . . Parts Fried . | . . . . Impact Corruptions . | . . . . Robots Melted . | . . . . Combat Hostiles . | . . . . Parts Melted 3 | . . 2 1 Heat Transferred 1443 | 111 333 814 185 Parts Sabotaged . | . . . . Parts Stolen . | . . . . Parts Stripped . | . . . . Power Chain Reactions . | . . . . Alert | -11 -10 -10 -10 ------- Run | Yrd Mat Min Sub Peak Influence 170 | 5 115 170 . Initial 44 | . 3 44 . Average 54 | 1 30 69 . Maximum Alert Level . | . . . . Low Security (%) 100 | 100 100 100 . Level 1 . | . . . . Level 2 . | . . . . Level 3 . | . . . . Level 4 . | . . . . Level 5 . | . . . . High Security . | . . . . Max Security . | . . . . Squads Dispatched 1 | . 1 . . Investigation . | . . . . Extermination . | . . . . Reinforcement 1 | . 1 . . Assault . | . . . . Garrison . | . . . . Intercept . | . . . . Searches Triggered . | . . . . Construction Impeded . | . . . . Haulers Reinforced . | . . . . Active Scanning Responses . | . . . . Cargo Convoy Interrupts . | . . . . Stealth | -11 -10 -10 -10 --------- Run | Yrd Mat Min Sub Distress Signals 2 | . 2 . . Communications Jammed . | . . . . Distress Signals . | . . . . Times Spotted 31 | . 8 10 13 Peak Tracking Total 6 | . 4 3 6 Tactical Retreats 2 | . . . 2 Traps | -11 -10 -10 -10 ------- Run | Yrd Mat Min Sub Traps Triggered 1 | . . . 1 Indirectly . | . . . . Trap Hack Attempts . | . . . . Triggered . | . . . . Disarmed . | . . . . Reprogrammed . | . . . . Reused . | . . . . Traps Extracted . | . . . . Installed . | . . . . Triggered . | . . . . Machines | -11 -10 -10 -10 ---------- Run | Yrd Mat Min Sub Machines Disabled 1 | . 1 . . Max in Single Turn 1 | . 1 . . Machines Repaired . | . . . . Machines Dismantled . | . . . . Machines Sabotaged . | . . . . Overloaded Fab Kills . | . . . . Hacking | -11 -10 -10 -10 --------- Run | Yrd Mat Min Sub Machines Accessed 2 | . 2 . . Terminals 2 | . 2 . . Fabricators . | . . . . Repair Stations . | . . . . Recycling Units . | . . . . Scanalyzers . | . . . . Garrison Access . | . . . . Total Hacks 3 | . 3 . . Successful 2 | . 2 . . Failed 1 | . 1 . . Catastrophic . | . . . . Database Lockouts . | . . . . Manual . | . . . . Terminals 3 | . 3 . . Fabricators . | . . . . Repair Stations . | . . . . Recycling Units . | . . . . Scanalyzers . | . . . . Garrison Access . | . . . . Terminal Hacks 2 | . 2 . . Robot Analysis 1 | . 1 . . Branch Access Points 1 | . 1 . . Fabricator Hacks . | . . . . Repair Station Hacks . | . . . . Recycling Unit Hacks . | . . . . Scanalyzer . | . . . . Garrison Access Hacks . | . . . . Unauthorized Hacks . | . . . . Terminals . | . . . . Fabricators . | . . . . Repair Stations . | . . . . Recycling Units . | . . . . Scanalyzers . | . . . . Garrison Access . | . . . . Data Cores Recovered 1 | . 1 . . Used . | . . . . Hacking Detections . | . . . . Full Trace Events . | . . . . Feedback Events . | . . . . Feedback Blocked . | . . . . Robot Schematics Acquired . | . . . . Robots Built . | . . . . Authchips . | . . . . Time . | . . . . Total Robot Build Rating . | . . . . Part Schematics Acquired . | . . . . Parts Built . | . . . . Authchips . | . . . . Time . | . . . . Total Part Build Rating . | . . . . Parts Repaired . | . . . . Time . | . . . . Parts Recycled . | . . . . Recycled Matter . | . . . . Retrieved Matter . | . . . . Retrieved Components . | . . . . Parts Scanalyzed . | . . . . Part Schematics Acquired . | . . . . Parts Damaged . | . . . . Bothacking | -11 -10 -10 -10 ------------ Run | Yrd Mat Min Sub Used RIF Installer . | . . . . Robots Hacked . | . . . . Non-combat . | . . . . Combat . | . . . . Robot Hacks Applied . | . . . . Relay Couplers Released . | . . . . Fabnet Peak Effective % . | . . . . Robots Rewired . | . . . . Allies Hacked . | . . . . Hacks Repelled . | . . . . Allies | -11 -10 -10 -10 -------- Run | Yrd Mat Min Sub Total Allies 3 | . . 3 . Largest Group 3 | . . 3 . Highest-Rated Group 40 | . . 40 . Highest-Rated Ally 16 | . . 16 . Total Orders . | . . . . Ally Attacks . | . . . . Total Damage . | . . . . Kills . | . . . . Allies Corrupted . | . . . . Allies Melted . | . . . . Intel | -11 -10 -10 -10 ------- Run | Yrd Mat Min Sub Robot Analysis Total 1 | . 1 . . Derelict Logs Recovered 5 | . . 2 3 Drone Launches . | . . . . Drone Recoveries . | . . . . Exploration | -11 -10 -10 -10 ------------- Run | Yrd Mat Min Sub Turns Passed 2754 | 112 349 967 1326 Spaces Moved 1939 | 75 253 592 1019 Core 20 | 20 . . . Treads . | . . . . Legs 1643 | 55 253 592 743 Wheels 276 | . . . 276 Hover . | . . . . Flight . | . . . . Fastest Speed 50 | 50 120 120 110 Average Speed 117 | 101 120 120 117 Slowest Speed 190 | 120 120 120 190 Overloaded Moves . | . . . . Propulsion Burnouts . | . . . . Robots Hopped . | . . . . Cave-ins Triggered . | . . . . Exploration Rate (%) 57 | 5 52 99 72 Regions Visited 3 Branch Regions 2 Pre-discovered Areas 2 | . . 1 1 Known Exits Taken 2 | . 1 1 . Unknown Exits Taken 1 | 1 . . . Scrap Searched 7 | . . 1 6 Spaces Dug . | . . . . Terrain Destroyed . | . . . . Melee . | . . . . Projectile . | . . . . AOE . | . . . . Terrain Rammed . | . . . . Walls Destroyed . | . . . . Machines Disabled . | . . . . Actions | -11 -10 -10 -10 --------- Run | Yrd Mat Min Sub Total 2274 | 102 276 801 1095 Wait 216 | 7 . 182 27 Move 1936 | 74 252 591 1019 Hop . | . . . . Pick Up 23 | 9 8 . 6 Fast Attach 2 | . 1 . 1 Attach 9 | 6 . . 3 Detach . | . . . . Swap 10 | . 2 2 6 Drop 9 | 1 2 2 4 Fire 69 | 5 11 24 29 Melee . | . . . . Ram . | . . . . Kick . | . . . . Crush . | . . . . Escape Stasis . | . . . . Rewire . | . . . . Trap . | . . . . Miscellaneous . | . . . . Route ------- -11/Scrapyard -10/Materials (discovered 3 exits: [*Mat] / *Min x2) -10/Mines (discovered 3 exits: [*Mat x2] / *Sub) -10/Subcaves (discovered 2 exits: *Mat x2) History --------- Turn | Location | Event 5 | -11/Scrapyard | Discovered new exit (range 16) 113 | -11/Scrapyard | Entered Materials 311 | -10/Materials | Build established: Mutant 343 | -10/Materials | Discovered new exit (range 6) 356 | -10/Materials | Identified exit to Mines 462 | -10/Materials | Entered Mines 528 | -10/Mines | Discovered new exit (range 13) 551 | -10/Mines | Learned location of Storage (-8) 769 | -10/Mines | Discovered new exit (range 6) 1119 | -10/Mines | Identified exit to Subcaves 1202 | -10/Mines | Core integrity fell below 50% 1245 | -10/Mines | Assisted by bots powering up and referring to "LRC-V3" 1429 | -10/Mines | Entered Subcaves 1453 | -10/Subcaves | Learned location of Zion (-6) 1464 | -10/Subcaves | Identified exit to Materials 1510 | -10/Subcaves | Learned Materials garrison access intel 2011 | -10/Subcaves | A swath of the cavern ceiling suddenly collapsed 2110 | -10/Subcaves | Discovered exit to Materials (range 12) 2198 | -10/Subcaves | Shifting Twisted Machinery released Sub. Optics 2201 | -10/Subcaves | Shifting Twisted Machinery released Sub. Optics 2231 | -10/Subcaves | Shifting Twisted Machinery released Spk. Treads 2238 | -10/Subcaves | Shifting Twisted Machinery released Sub. Monowheel 2339 | -10/Subcaves | A swath of the cavern ceiling suddenly collapsed 2541 | -10/Subcaves | Disturbed a concealed Subdweller 2552 | -10/Subcaves | Core integrity fell below 20% 2652 | -10/Subcaves | Shifting Twisted Machinery released Shrapnel Trap 2653 | -10/Subcaves | Shifting Twisted Machinery released Sub. Power Source 2755 | -10/Subcaves | Destroyed by S-10 Pest with Light Assault Rifle Last Messages --------------- 02566_ Found Sub. Beam Cannon. 02566_ Found 53 Matter. 02567_ Acquired 41 matter. 02567_ Searching scrap... 02567_ Found Barrage Gun. 02567_ Found 67 Matter. 02570_ Acquired Barrage Gun. 02572_ Dropped Barrage Gun. 02573_ Acquired 10 matter. 02577_ Searching scrap... 02577_ Found Mak. Power Source. 02577_ Found Mak. Thermal Plating. 02577_ Found 59 Matter. 02579_ Acquired Mak. Thermal Plating. 02584_ Acquired Mak. Power Source. 02587_ Acquired 10 matter. Shrapnel Trap falls loose from the Twisted Machinery. Sub. Power Source falls loose from the Twisted Machinery. Map ----- +----------------------------------------------------+ | ?????????????????????????????????????????????????? | | ?????????????????????????????????????????????????? | | ?????????????????????????????????????????????????? | | ?????????????????????????????????????????????????? | | ?????????????????????????????????????????????????? | | ?????????????????????????????????????????????????? | | ?????????????????????????????????????????????????? | | ?????????????????????????????????????????????????? | | ?????????????????????????????????????????????????? | | ??????????????????????? ?????????????????????????? | | ????????????????????? " ?????????????????????????? | | ????????????????????? ?????????????????????????? | | ?????????????????????? ????????????????????????? | | ?????????????????????? ????????????????????????? | | ??????????????????????? ????????????????????????? | | ??????????????????????? #???????????????????????? | | ???????????????????????? ##?????????????????????? | | ???????????????????????? ##????????????????????? | | ??????????###???????????? s#????#???????????????? | | ????????## ###?####????? ##?? ##??????????????? | | ????????# ### #?????#s ## #??????????????? | | ???????## #?# #?????#s #???????????????? | | #???#### ##### #?????## #????????????????? | | ##?# ##### #?????# #????????????????? | | ### ### ####### # ### ?????????????? | | ##??# ## @ # % ????????????? | | # #??## #????????????? | | # #### #### ##????????????? | | # ## ##??# ##########?????????????? | | ## ####### #??????????????????????? | | #?# ##?????????????????????? | | #?# #?????????????????????? | | ### ##?????????????????????? | | ## #?## ###??????????????????????? | | ### #??## ##????????????????????????? | | # ###### #?## ##?????????????????????????? | | ## #???## ## ##?????????????????????????? | | ?# ##????# ### ##????????????????????????? | | ?# ##?????## ##?### #????????????????????????? | | ?###????????###????##*" ##???###?????????????????? | | ????????????????????##" ###" "#?????????????????? | | ?????????????????????## " "#?????????????????? | | ???????????????????#### " "#?????????????????? | | ????????????????####" &""#?????????????????? | | ???????????????## "" ## "#?????????????????? | | ???????????????# " ## ##? "##?????????????????? | | ???????????????# ###?##???"#??????????????????? | | ???????????????# #####?????"??????????????????? | | ???????????????## #????????????????????????? | | ????????????????## ##????????????????????????? | +----------------------------------------------------+ Best States ------------- Heat Dissipation 25 Energy Generation 15 Energy Capacity 265 Matter Stores 300 Matter Capacity 300 Sight Range 16 Terrain Scan Density 10 Evasion (%) 55 Offensive Hacking 10 Item Schematics ----------------- None Robot Schematics ------------------ None Fabricated ------------ Nothing Alien Tech Used ----------------- None Achievements -------------- None Challenges ------------ None Game ------ Seed PotentialHugeLaser Manual? 0 Play Time 00:14:26 Cumulative 25.6 hours Start 2024.08.07 @ 18:14:06 End 2024.08.07 @ 19:04:45 Sessions 1 Manual Loads 0 Difficulty Rogue Special Mode None Game No. 42 Rogue 38 Adventurer 4 Explorer 0 Win Type - Total 0 Types 0/0/0/0/0/0/0/0/0 Lore% 6 Gallery% 25 Achievement% 17 Wizard Run 0 Options --------- Layout 1 ASCII 0 Keyboard 0 Movement Mouse Keybinds 0 Fullscreen 2 Font 24/Smallcaps Map View 50x35 Zoom Use 0% Tactical HUD 1 Map Filters NONE Filters NONE Steam 1 RUN: aa3aca15-6667-4802-868d-d4d24adbea7c